bitfinex/quotes_SOLUSD_20250418
["timestamp","ask_amount","ask_price","bid_price","bid_amount"]
[1744959536638,13.57795927,134.2,134.16,6.12639445]
[1744959539038,13.57795927,134.2,134.15,40.86639445]
[1744959541726,7.45156482,134.2,134.16,6.12639445]
[1744959541933,7.44989942,134.23,134.19,6.12639445]
[1744959542235,13.57629387,134.23,134.18,6.12639445]
[1744959542416,8.91275281,134.22,134.18,20.74639445]
[1744959542828,7.45100961,134.21,134.18,20.74639445]
[1744959543737,7.45100961,134.21,134.18,14.62]
[1744959544120,13.57740406,134.21,134.18,14.62]
[1744959544823,7.45100961,134.21,134.18,14.62]
[1744959553248,13.57740406,134.21,134.18,14.62]
[1744959555750,7.45100961,134.21,134.18,14.62]
[1744959556657,13.57740406,134.21,134.18,14.62]
[1744959556832,13.57740406,134.21,134.17,6.12639445]
[1744959558857,7.45100961,134.21,134.17,6.12639445]
[1744959561355,6.12639445,134.21,134.17,6.12639445]
[1744959562159,6.12639445,134.19,134.16,14.62]
[1744959562346,6.12639445,134.18,134.16,14.62]
[1744959563539,7.45323097,134.17,134.16,14.62]
[1744959567361,6.12639445,134.19,134.16,14.62]
[1744959568445,32.20492808,134.21,134.17,6.12639445]
[1744959568665,32.20492808,134.21,134.16,20.74639445]
[1744959568856,2.78547113,134.2,134.16,20.74639445]
[1744959569057,8.91186558,134.2,134.16,20.74639445]
[1744959569448,7.45212012,134.19,134.16,20.74639445]
[1744959570458,24.75391847,134.21,134.16,20.74639445]
[1744959570459,7.45156482,134.2,134.16,20.74639445]
[1744959573266,7.45156482,134.2,134.17,6.12639445]
[1744959576169,37.24949713,134.23,134.19,6.12639445]
[1744959576170,7.44989942,134.23,134.19,6.12639445]
[1744959576346,7.44989942,134.23,134.2,6.12639445]
[1744959577269,7.44989942,134.23,134.19,6.12639445]
[1744959577575,7.44934445,134.24,134.21,6.12639445]
[1744959578263,7.44934445,134.24,134.22,6.12639445]
[1744959579265,7.44878957,134.25,134.22,6.12639445]
[1744959579765,7.44878957,134.25,134.21,6.12639445]
[1744959581271,13.57518402,134.25,134.21,6.12639445]
[1744959581573,6.12639445,134.24,134.18,46.0]
[1744959581871,6.12639445,134.24,134.19,6.12639445]
[1744959582567,32.19715794,134.25,134.2,6.12639445]
[1744959582863,26.07076349,134.25,134.2,6.12639445]
[1744959583274,32.19715794,134.25,134.2,6.12639445]
[1744959585569,6.12639445,134.22,134.18,26.0]
[1744959585773,6.12639445,134.19,134.16,14.62]
[1744959587177,7.45267551,134.18,134.16,14.62]
[1744959587350,13.57906996,134.18,134.16,14.62]
[1744959588870,7.45267551,134.18,134.16,14.62]
[1744959589960,6.12639445,134.21,134.16,20.74639445]
[1744959590157,6.12639445,134.21,134.17,6.12639445]
[1744959590469,7.45156482,134.2,134.16,20.74639445]
[1744959590672,13.57795927,134.2,134.16,20.74639445]
[1744959592471,32.20687134,134.2,134.16,14.62]
[1744959592650,6.12639445,134.19,134.16,14.62]
[1744959593477,26.08047689,134.2,134.16,14.62]
[1744959593772,32.20687134,134.2,134.16,20.74639445]
[1744959596266,26.08047689,134.2,134.16,20.74639445]
[1744959596471,7.45156482,134.2,134.16,20.74639445]
[1744959596773,7.45156482,134.2,134.17,6.12639445]
[1744959598960,24.7526572,134.22,134.18,6.12639445]
[1744959599150,13.57629387,134.23,134.18,6.12639445]
[1744959599356,7.44989942,134.23,134.18,6.12639445]
[1744959599555,2.77964057,134.22,134.18,6.12639445]
[1744959601282,7.45100961,134.21,134.19,6.12639445]
[1744959602675,26.07464798,134.23,134.19,6.12639445]
[1744959604486,7.44989942,134.23,134.2,6.12639445]
[1744959604779,7.44989942,134.23,134.21,6.12639445]
[1744959604961,7.44878957,134.25,134.21,6.12639445]
[1744959605162,7.44878957,134.25,134.22,6.12639445]
[1744959605371,7.44878957,134.25,134.23,6.12639445]
[1744959605971,7.44843061,134.26,134.24,6.12639445]
[1744959606289,7.44843061,134.26,134.25,6.12639445]
[1744959606477,7.47785946,134.27,134.25,6.12639445]
[1744959606679,0.03,134.27,134.25,6.12639445]
[1744959607568,0.03,134.27,134.26,6.12639445]
[1744959607793,0.03,134.27,134.26,20.74639445]
[1744959610089,0.03,134.27,134.26,14.62]
[1744959610868,6.15639445,134.27,134.26,14.62]
[1744959611069,6.15639445,134.27,134.22,14.62]
[1744959611289,6.15639445,134.27,134.22,20.74639445]
[1744959611475,6.15639445,134.27,134.23,6.12639445]
[1744959611664,0.03,134.27,134.24,6.12639445]
[1744959611870,0.03,134.27,134.23,6.12639445]
[1744959612687,7.47768004,134.27,134.24,6.12639445]
[1744959612992,7.47768004,134.27,134.25,6.12639445]
[1744959613565,7.47768004,134.27,134.22,146.50018102]
[1744959613566,0.03,134.27,134.26,6.12639445]
[1744959615389,0.03,134.27,134.26,26.12639445]
[1744959615988,0.03,134.27,134.26,127.96036645]
[1744959616187,0.03,134.27,134.26,155.44523815]
[1744959616895,0.03,134.27,134.26,130.93966035]
[1744959617189,0.03,134.27,134.26,127.96036645]
[1744959617977,0.03,134.27,134.26,26.0]
[1744959620693,0.03,134.27,134.26,52.12639445]
[1744959621892,0.03,134.27,134.26,71.06036645]
[1744959622091,0.03,134.27,134.26,139.13646035]
[1744959622471,0.03,134.27,134.26,138.10886615]
[1744959622676,0.03,134.27,134.26,153.96036645]
[1744959623176,0.03,134.27,134.26,130.93966035]
[1744959623395,0.03,134.27,134.26,155.44523815]
[1744959624705,0.03,134.27,134.26,130.93966035]
[1744959626286,0.03,134.27,134.26,127.96036645]
[1744959626484,0.03,134.27,134.26,128.9]
[1744959628402,0.03,134.27,134.26,135.02639445]
[1744959631516,6.15639445,134.27,134.23,20.0]
[1744959631715,6.15639445,134.27,134.23,46.0]
[1744959631891,6.15639445,134.27,134.23,52.12639445]
[1744959632318,0.03,134.27,134.26,26.0]
[1744959632618,0.03,134.27,134.26,32.12639445]
[1744959632817,0.03,134.27,134.26,26.0]
[1744959633399,0.03,134.27,134.26,40.6]
[1744959639428,0.03,134.27,134.26,50.15457343]
[1744959639604,9.58457343,134.27,134.26,14.6]
[1744959639931,9.58457343,134.27,134.22,14.6]
[1744959640225,9.55457343,134.26,134.22,40.6]
[1744959641116,9.58457343,134.27,134.22,50.15457343]
[1744959641716,7.44823476,134.26,134.22,50.15457343]
[1744959643134,1.6285,134.25,134.19,232.14]
[1744959643426,9.55457343,134.23,134.19,246.74]
[1744959644044,9.55457343,134.22,134.19,246.74]
[1744959645424,7.45100961,134.21,134.19,246.74]
[1744959646839,7.45100961,134.21,134.19,256.29457343]
[1744959647133,7.44934445,134.24,134.2,9.55457343]
[1744959647714,7.44900053,134.25,134.21,9.55457343]
[1744959647943,7.44900053,134.25,134.22,35.55457343]
[1744959648939,7.44900053,134.25,134.23,9.55457343]
[1744959649424,26.0970443,134.27,134.23,9.55457343]
[1744959650743,35.65161773,134.27,134.22,55.55457343]
[1744959650920,9.55457343,134.26,134.22,26.0]
[1744959651845,7.44823476,134.26,134.22,35.55457343]
[1744959655552,7.44823476,134.26,134.23,9.55457343]
[1744959656654,35.65161773,134.27,134.22,35.55457343]
[1744959657326,9.55457343,134.25,134.2,35.55457343]
[1744959657532,26.0970443,134.27,134.2,26.0]
[1744959657533,9.55457343,134.24,134.2,26.0]
[1744959658550,61.65161773,134.27,134.22,9.55457343]
[1744959658753,26.0970443,134.27,134.23,9.55457343]
[1744959661641,26.0970443,134.27,134.23,24.19457343]
[1744959665343,35.65161773,134.27,134.23,14.64]
[1744959665549,9.55457343,134.25,134.23,14.64]
[1744959665733,9.55457343,134.24,134.23,14.64]
[1744959665937,9.55457343,134.24,134.2,26.0]
[1744959666145,9.55457343,134.26,134.21,9.55457343]
[1744959666352,26.0970443,134.27,134.23,26.0]
[1744959666539,26.0970443,134.27,134.23,35.55457343]
[1744959667153,35.65161773,134.27,134.23,26.0]
[1744959668742,26.0970443,134.27,134.23,35.55457343]
[1744959670242,35.65161773,134.27,134.23,26.0]
[1744959670449,9.55457343,134.25,134.22,14.64]
[1744959671256,17.00391788,134.24,134.22,14.64]
[1744959672557,7.44934445,134.24,134.22,14.64]
[1744959673559,26.07105581,134.25,134.22,14.64]
[1744959674573,7.44878957,134.25,134.22,14.64]
[1744959674865,7.44878957,134.25,134.22,24.19457343]
[1744959675162,7.44878957,134.25,134.23,9.55457343]
[1744959675661,7.47768004,134.27,134.23,9.55457343]
[1744959675956,17.03225347,134.27,134.23,9.55457343]
[1744959678740,7.47768004,134.27,134.23,9.55457343]
[1744959678944,7.47768004,134.27,134.24,9.55457343]
[1744959679464,0.03,134.27,134.24,9.55457343]
[1744959680750,0.03,134.27,134.25,9.55457343]
[1744959681055,0.03,134.27,134.26,9.55457343]
[1744959683969,0.03,134.27,134.25,9.55457343]
[1744959684357,0.03,134.27,134.24,35.55457343]
[1744959684554,0.03,134.27,134.24,26.0]
[1744959684954,9.58457343,134.27,134.24,26.0]
[1744959685262,17.00280819,134.26,134.22,14.64]
[1744959685670,17.00280819,134.26,134.22,24.19457343]
[1744959688773,9.58457343,134.27,134.22,24.19457343]
[1744959690174,7.44823476,134.26,134.22,24.19457343]
[1744959691074,9.55457343,134.25,134.22,14.64]
[1744959691251,9.55457343,134.24,134.22,14.64]
[1744959691671,27.65882168,134.26,134.22,14.64]
[1744959692273,7.44934445,134.24,134.22,14.64]
[1744959695771,17.00391788,134.24,134.22,14.64]
[1744959696355,9.55457343,134.23,134.19,26.0]
[1744959696969,9.55457343,134.23,134.19,35.55457343]
[1744959697173,35.62727902,134.24,134.19,35.55457343]
[1744959697482,35.62727902,134.24,134.2,9.55457343]
[1744959698562,35.62727902,134.24,134.19,35.55457343]
[1744959699154,35.62727902,134.24,134.2,9.55457343]
[1744959699155,26.07270559,134.24,134.2,9.55457343]
[1744959701772,7.44934445,134.24,134.21,9.55457343]
[1744959701983,7.44934445,134.24,134.22,9.55457343]
[1744959702165,7.44934445,134.24,134.21,9.55457343]
[1744959703773,7.44878957,134.25,134.21,9.55457343]
[1744959705180,7.44878957,134.25,134.21,6.11862235]
[1744959705958,32.18938584,134.25,134.2,6.11862235]
[1744959706658,32.18938584,134.25,134.22,6.11862235]
[1744959706659,26.07076349,134.25,134.22,6.11862235]
[1744959707676,7.44878957,134.25,134.22,6.11862235]
[1744959708078,0.03,134.27,134.24,6.11862235]
[1744959708384,0.03,134.27,134.26,6.11862235]
[1744959709179,0.03,134.27,134.26,9.55300259]
[1744959712273,0.03,134.27,134.23,24.15300259]
[1744959712474,0.03,134.27,134.23,14.6]
[1744959712475,9.55300259,134.25,134.23,14.6]
[1744959713071,0.03,134.27,134.23,14.6]
[1744959713072,9.55300259,134.26,134.23,14.6]
[1744959713484,7.44878957,134.25,134.23,14.6]
[1744959713880,17.00179216,134.25,134.23,14.6]
[1744959714380,35.62376608,134.25,134.21,26.0]
[1744959716466,35.62376608,134.25,134.2,9.55300259]
[1744959716668,9.55300259,134.24,134.19,50.15300259]
[1744959716869,35.62376608,134.25,134.2,9.55300259]
[1744959717876,26.07076349,134.25,134.21,9.55300259]
[1744959718369,26.07076349,134.25,134.22,9.55300259]
[1744959718782,26.07076349,134.25,134.21,24.15300259]
[1744959718982,35.62376608,134.25,134.21,24.15300259]
[1744959720387,35.62376608,134.25,134.21,14.6]
[1744959720985,9.55300259,134.26,134.21,24.15300259]
[1744959721179,35.64988274,134.27,134.22,9.55300259]
[1744959721380,26.09688015,134.27,134.24,9.55300259]
[1744959722390,7.47768004,134.27,134.24,9.55300259]
[1744959722586,7.47768004,134.27,134.25,9.55300259]
[1744959723194,0.03,134.27,134.25,9.55300259]
[1744959723495,0.03,134.27,134.24,9.55300259]
[1744959723991,9.58300259,134.27,134.22,35.55300259]
[1744959724171,0.03,134.27,134.23,9.55300259]
[1744959724577,0.03,134.27,134.24,35.55300259]
[1744959724778,0.03,134.27,134.25,9.55300259]
[1744959725171,0.03,134.27,134.26,9.55300259]
[1744959726080,0.03,134.27,134.25,9.55300259]
[1744959727110,0.03,134.27,134.24,35.55300259]
[1744959727294,7.47768004,134.27,134.24,26.0]
[1744959727594,17.03068263,134.27,134.24,26.0]
[1744959728295,7.47768004,134.27,134.24,26.0]
[1744959729693,26.09688015,134.27,134.24,26.0]
[1744959731602,26.09688015,134.27,134.24,35.55300259]
[1744959732900,26.09688015,134.27,134.21,14.6]
[1744959732901,26.09688015,134.27,134.23,9.55300259]
[1744959733197,26.09688015,134.27,134.23,6.11647102]
[1744959734187,18.64920011,134.27,134.24,6.11647102]
[1744959734587,18.64920011,134.27,134.21,40.6]
[1744959734803,18.64920011,134.27,134.23,6.11647102]
[1744959735715,18.64920011,134.27,134.24,6.11647102]
[1744959735716,0.03,134.27,134.24,6.11647102]
[1744959736889,0.03,134.27,134.26,6.11647102]
[1744959739385,0.03,134.27,134.25,6.11647102]
[1744959740195,0.03,134.27,134.26,6.11647102]
[1744959746897,0.03,134.27,134.26,71.1823551]
[1744959747198,0.03,134.27,134.26,175.995621]
[1744959747603,0.03,134.27,134.26,149.995621]
[1744959749402,19.09886099,134.38,134.34,20.0]
[1744959749626,19.09886099,134.38,134.37,6.11647102]
[1744959749805,7.44123852,134.39,134.37,6.11647102]
[1744959750206,2.6143906,134.4,134.38,6.11647102]
[1744959750410,2.6143906,134.4,134.39,6.11647102]
[1744959752305,2.6143906,134.4,134.39,26.11647102]
[1744959753308,2.6143906,134.4,134.39,29.53247001]
[1744959754520,2.6143906,134.4,134.39,57.99891202]
[1744959754704,2.6143906,134.4,134.39,140.89891202]
[1744959756317,10.0549759,134.4,134.37,20.0]
[1744959756718,10.0549759,134.4,134.38,9.53247001]
[1744959756898,10.0549759,134.4,134.39,26.0]
[1744959757298,10.0549759,134.4,134.37,26.0]
[1744959757621,38.18863638,134.4,134.36,14.6]
[1744959757806,28.65616637,134.4,134.36,50.13247001]
[1744959758006,10.0549759,134.4,134.37,9.53247001]
[1744959758418,10.0549759,134.4,134.36,50.13247001]
[1744959758616,10.0549759,134.4,134.36,24.13247001]
[1744959758818,9.53247001,134.37,134.31,20.0]
[1744959759120,9.53247001,134.36,134.32,14.6]
[1744959759317,9.53247001,134.36,134.32,40.6]
[1744959760118,16.97571526,134.35,134.32,14.6]
[1744959760319,9.53247001,134.34,134.32,14.6]
[1744959760814,35.58382839,134.35,134.32,14.6]
[1744959761216,26.05135838,134.35,134.32,14.6]
[1744959761923,35.58382839,134.35,134.32,14.6]
[1744959762323,9.53247001,134.34,134.29,241.59247001]
[1744959762526,9.53247001,134.34,134.3,26.0]
[1744959762916,9.53247001,134.33,134.31,26.0]
[1744959763104,26.05135838,134.35,134.31,26.0]
[1744959763305,9.53247001,134.34,134.31,26.0]
[1744959764328,35.5877071,134.33,134.28,24.13247001]
[1744959764642,26.05523709,134.33,134.29,35.53247001]
[1744959765528,35.5877071,134.33,134.29,26.0]
[1744959765718,9.53247001,134.32,134.29,26.0]
[1744959765907,35.5877071,134.33,134.29,26.0]
[1744959766416,35.5877071,134.33,134.29,35.53247001]
[1744959768632,35.5877071,134.33,134.29,26.0]
[1744959768930,9.53247001,134.32,134.29,26.0]
[1744959770721,28.14335365,134.33,134.29,26.0]
[1744959771329,26.05717688,134.32,134.29,26.0]
[1744959772815,26.05717688,134.32,134.3,9.53247001]
[1744959773217,26.05717688,134.32,134.29,35.53247001]
[1744959773734,18.6122692,134.32,134.29,35.53247001]
[1744959776522,18.6122692,134.32,134.3,9.53247001]
[1744959777736,26.05329759,134.34,134.29,35.53247001]
[1744959777948,26.05329759,134.34,134.31,9.53247001]
[1744959778134,7.44379931,134.34,134.32,9.53247001]
[1744959778449,7.44379931,134.34,134.31,9.53247001]
[1744959780520,7.44324525,134.35,134.32,9.53247001]
[1744959783226,6.10908357,134.36,134.32,6.10908357]
[1744959783634,6.10908357,134.37,134.32,6.10908357]
[1744959783934,32.18268799,134.39,134.34,6.10908357]
[1744959784127,26.07360442,134.39,134.34,6.10908357]
[1744959784331,32.18268799,134.39,134.34,6.10908357]
[1744959784936,26.07360442,134.39,134.35,6.10908357]
[1744959785231,7.47102983,134.39,134.37,6.10908357]
[1744959785626,7.47102983,134.39,134.38,6.10908357]
[1744959787222,7.47102983,134.39,134.38,9.53682646]
[1744959789455,17.00785629,134.39,134.36,26.0]
[1744959789634,9.53682646,134.37,134.33,14.72]
[1744959789947,9.53682646,134.36,134.33,14.72]
[1744959790357,9.53682646,134.37,134.33,14.72]
[1744959790528,26.07360442,134.39,134.33,14.72]
[1744959790529,7.44324525,134.35,134.33,14.72]
[1744959793439,7.44324525,134.35,134.34,9.53682646]
[1744959794557,7.44213738,134.37,134.33,24.25682646]
[1744959794764,7.44213738,134.37,134.35,9.53682646]
[1744959795439,7.44213738,134.37,134.36,9.53682646]
[1744959796752,26.0748086,134.39,134.36,9.53682646]
[1744959802071,26.0748086,134.39,134.35,9.53682646]
[1744959804571,35.61163506,134.39,134.34,9.53682646]
[1744959804741,35.61163506,134.39,134.33,24.25682646]
[1744959805147,9.53682646,134.38,134.33,14.72]
[1744959805462,9.53682646,134.37,134.33,14.72]
[1744959806161,7.44269127,134.36,134.33,14.72]
[1744959807161,6.1095205,134.35,134.33,14.72]
[1744959807347,1.5975,134.33,134.27,0.063]
[1744959807554,6.1095205,134.32,134.27,6.1725205]
[1744959808264,32.16863746,134.31,134.27,6.1725205]
[1744959808464,26.05911696,134.31,134.27,6.1725205]
[1744959809165,18.61365497,134.31,134.27,9.61485947]
[1744959810545,26.05911696,134.31,134.27,9.61485947]
[1744959811772,7.44546199,134.31,134.29,9.55185947]
[1744959813458,7.44490768,134.32,134.29,9.55185947]
[1744959815171,7.44490768,134.32,134.27,0.063]
[1744959815172,7.44490768,134.32,134.28,9.55185947]
[1744959819670,26.05717688,134.32,134.28,9.55185947]
[1744959819856,9.55185947,134.31,134.27,0.063]
[1744959820057,35.60903635,134.32,134.27,9.61485947]
[1744959820661,7.44601638,134.3,134.27,0.063]
[1744959822461,35.6129168,134.3,134.27,0.063]
[1744959822659,9.55185947,134.29,134.27,0.063]
[1744959822959,35.6129168,134.3,134.27,0.063]
[1744959828580,26.06105733,134.3,134.27,0.063]
[1744959829183,32.17594361,134.3,134.27,0.063]
[1744959832466,26.06105733,134.3,134.27,0.063]
[1744959833364,32.17594361,134.3,134.27,0.063]
[1744959833571,26.06105733,134.3,134.27,0.063]
[1744959845086,7.44601638,134.3,134.27,6.17788628]
[1744959845294,7.44601638,134.3,134.28,6.11488628]
[1744959846593,18.60946926,134.35,134.29,52.11488628]
[1744959846779,18.60946926,134.35,134.31,6.11488628]
[1744959847290,26.05271451,134.35,134.31,6.11488628]
[1744959849292,7.44324525,134.35,134.31,6.11488628]
[1744959849492,7.44324525,134.35,134.34,6.11488628]
[1744959851297,18.60538085,134.37,134.34,6.11488628]
[1744959851700,7.44158356,134.38,134.35,6.11488628]
[1744959851880,7.44158356,134.38,134.36,6.11488628]
[1744959852278,7.44158356,134.38,134.35,40.71488628]
[1744959853096,13.58591611,134.39,134.35,14.6]
[1744959853493,32.1884907,134.39,134.35,14.6]
[1744959854796,32.1884907,134.39,134.3,2.23374866]
[1744959854797,6.11488628,134.36,134.3,14.6]
[1744959855001,6.11488628,134.34,134.3,20.71488628]
[1744959855190,7.44435345,134.33,134.3,20.71488628]
[1744959855882,7.44435345,134.33,134.3,14.6]
[1744959856081,13.55923973,134.33,134.3,14.6]
[1744959856794,6.11488628,134.32,134.3,14.6]
[1744959857497,7.44546199,134.31,134.3,14.6]
[1744959858300,7.44546199,134.31,134.3,20.71488628]
[1744959858599,7.44435345,134.33,134.3,20.71488628]
[1744959859489,7.44379931,134.34,134.3,20.71488628]
[1744959861402,7.44213738,134.37,134.33,6.11488628]
[1744959862485,6.11488628,134.36,134.31,20.0]
[1744959862683,6.11488628,134.36,134.31,26.11488628]
[1744959862899,6.11488628,134.36,134.31,6.11488628]
[1744959863101,26.04748083,134.37,134.3,20.71488628]
[1744959863102,6.11488628,134.35,134.3,20.71488628]
[1744959863903,6.11488628,134.34,134.3,20.71488628]
[1744959864687,6.11488628,134.35,134.3,20.71488628]
[1744959865903,7.44379931,134.34,134.31,6.11488628]
[1744959866111,7.44379931,134.34,134.33,6.11488628]
[1744959866303,7.44379931,134.34,134.31,26.11488628]
[1744959866510,7.44379931,134.34,134.31,6.11488628]
[1744959868107,7.44324525,134.35,134.31,6.11488628]
[1744959868310,7.44324525,134.35,134.31,26.11488628]
[1744959869808,7.44324525,134.35,134.31,20.0]
[1744959870011,6.11488628,134.34,134.3,14.6]
[1744959870211,6.11488628,134.35,134.3,14.6]
[1744959870394,6.11488628,134.34,134.3,14.6]
[1744959870801,6.11488628,134.35,134.3,20.71488628]
[1744959871891,7.44379931,134.34,134.3,20.71488628]
[1744959873792,26.04624126,134.38,134.33,6.11488628]
[1744959874086,26.04624126,134.38,134.34,6.11488628]
[1744959874502,26.04624126,134.38,134.35,6.11488628]
[1744959874694,7.44158356,134.38,134.35,6.11488628]
[1744959875100,7.44158356,134.38,134.35,20.71488628]
[1744959875608,7.47102983,134.39,134.35,20.71488628]
[1744959876111,32.1884907,134.39,134.35,14.6]
[1744959879216,26.07360442,134.39,134.35,14.6]
[1744959879409,32.1884907,134.39,134.35,14.6]
[1744959883511,7.47102983,134.39,134.35,20.71488628]
[1744959884416,13.58591611,134.39,134.35,20.71488628]
[1744959886322,7.47102983,134.39,134.35,20.71488628]
[1744959889321,32.1884907,134.39,134.35,14.6]
[1744959889628,6.11488628,134.38,134.35,14.6]
[1744959889927,32.1884907,134.39,134.35,14.6]
[1744959891124,7.47102983,134.39,134.35,20.71488628]
[1744959902444,7.47102983,134.39,134.36,6.11488628]
[1744959902740,7.47102983,134.39,134.37,6.11488628]
[1744959906938,7.47102983,134.39,134.38,6.11488628]
[1744959908052,0.03,134.39,134.38,52.11488628]
[1744959908425,0.03,134.39,134.38,57.98477778]
[1744959908945,0.03,134.39,134.38,60.21725285]
[1744959909318,0.03,134.39,134.38,79.15122485]
[1744959909539,0.03,134.39,134.38,53.15122485]
[1744959910542,2.6143906,134.4,134.39,18.933972]
[1744959910745,2.6143906,134.4,134.39,132.4084034]
[1744959911038,2.6143906,134.4,134.39,134.64071235]
[1744959911347,0.03,134.41,134.4,64.933972]
[1744959911547,0.03,134.41,134.4,110.1084034]
[1744959913352,0.03,134.41,134.4,112.34054625]
[1744959913525,0.03,134.41,134.4,110.1084034]
[1744959914352,0.03,134.41,134.4,66.71488628]
[1744959914735,0.03,134.41,134.4,46.71488628]
[1744959915146,0.03,134.41,134.4,40.6]
[1744959915342,26.04166666,134.4,134.36,14.6]
[1744959915645,26.04166666,134.4,134.36,40.6]
[1744959915646,32.15655294,134.4,134.36,40.6]
[1744959915838,26.04166666,134.4,134.36,46.71488628]
[1744959916236,26.04166666,134.4,134.36,40.6]
[1744959916446,26.04166666,134.4,134.36,46.71488628]
[1744959917751,32.15655294,134.4,134.36,40.6]
[1744959918355,6.11488628,134.39,134.36,40.6]
[1744959918659,6.11488628,134.37,134.36,14.6]
[1744959918952,6.11488628,134.38,134.36,14.6]
[1744959919535,7.44213738,134.37,134.36,14.6]
[1744959921336,30.91697675,134.4,134.36,14.6]
[1744959922561,7.44102983,134.39,134.36,14.6]
[1744959926359,26.04360442,134.39,134.36,14.6]
[1744959926656,32.1584907,134.39,134.36,14.6]
[1744959928461,32.1584907,134.39,134.34,20.71488628]
[1744959928640,32.1584907,134.39,134.35,6.11488628]
[1744959929063,6.11488628,134.37,134.34,14.6]
[1744959929452,7.44269127,134.36,134.34,14.6]
[1744959935871,6.11488628,134.35,134.34,14.6]
[1744959936056,6.11488628,134.35,134.31,26.0]
[1744959936369,13.55757755,134.36,134.31,32.11488628]
[1744959936545,7.44269127,134.36,134.32,6.11488628]
[1744959937065,7.44269127,134.36,134.33,6.11488628]
[1744959937247,7.44269127,134.36,134.34,6.11488628]
[1744959937448,7.44158356,134.38,134.35,6.11488628]
[1744959937662,7.44158356,134.38,134.36,6.11488628]
[1744959937848,24.71743052,134.4,134.36,6.11488628]
[1744959937849,7.44102983,134.39,134.36,6.11488628]
[1744959938765,7.44102983,134.39,134.35,20.71488628]
[1744959938953,7.44102983,134.39,134.35,46.71488628]
[1744959941569,6.11488628,134.37,134.35,14.6]
[1744959942251,13.55728378,134.37,134.35,14.6]
[1744959942450,13.55728378,134.37,134.33,20.71488628]
[1744959944172,6.11488628,134.38,134.33,20.71488628]
[1744959944373,6.11488628,134.37,134.33,14.6]
[1744959945672,7.44269127,134.36,134.33,14.6]
[1744959948977,7.44213738,134.37,134.33,20.71488628]
[1744959949479,13.55702366,134.37,134.33,20.71488628]
[1744959950778,6.11488628,134.38,134.33,20.71488628]
[1744959951674,18.60257459,134.39,134.35,6.11488628]
[1744959952780,13.55536247,134.4,134.35,6.11488628]
[1744959953078,13.55536247,134.4,134.34,6.11488628]
[1744959954483,32.15655294,134.4,134.34,6.11488628]
[1744959954671,7.44158356,134.38,134.34,6.11488628]
[1744959961589,1.5988,134.41,134.37,32.11488628]
[1744959961590,0.03,134.41,134.37,32.11488628]
[1744959961797,0.03,134.41,134.4,6.11488628]
[1744959962289,0.03,134.41,134.39,6.11488628]
[1744959962490,0.03,134.41,134.4,6.11488628]
[1744959968411,0.03,134.41,134.4,26.0]
[1744959968709,6.14488628,134.41,134.35,14.6]
[1744959968897,6.11488628,134.38,134.35,14.6]
[1744959969214,7.44213738,134.37,134.35,14.6]
[1744959969894,13.55702366,134.37,134.35,14.6]
[1744959970208,7.44213738,134.37,134.35,14.6]
[1744959971312,26.04561888,134.38,134.35,14.6]
[1744959972217,7.44158356,134.38,134.35,20.71488628]
[1744959972588,7.44158356,134.38,134.36,6.11488628]
[1744959973305,7.44102983,134.39,134.36,6.11488628]
[1744959973500,7.44102983,134.39,134.35,20.71488628]
[1744959977099,13.55591611,134.39,134.35,14.6]
[1744959977307,32.1584907,134.39,134.35,14.6]
[1744959977499,6.11488628,134.36,134.32,14.6]
[1744959977823,6.11488628,134.35,134.32,14.6]
[1744959978193,6.11488628,134.33,134.32,14.6]
[1744959978400,6.11488628,134.33,134.29,0.063]
[1744959978590,1.6569,134.34,134.29,0.063]
[1744959978591,6.11488628,134.32,134.29,0.063]
[1744959979106,7.44546199,134.31,134.29,0.063]
[1744959981212,7.44490768,134.32,134.29,0.063]
[1744959982206,7.44490768,134.32,134.29,6.17788628]
[1744959983213,7.44490768,134.32,134.29,0.063]
[1744959984311,32.17206316,134.32,134.29,0.063]
[1744959985319,6.11488628,134.31,134.29,0.063]
[1744959986822,7.44601638,134.3,134.29,0.063]
[1744959990829,13.56090266,134.3,134.29,1e-08]
[1744959991125,44.933972,134.27,134.24,1e-08]
[1744959991302,25.04885828,134.25,134.24,1e-08]
[1744959991815,18.933972,134.23,134.22,1e-08]
[1744959992004,25.04885828,134.23,134.22,1e-08]